Cogmind - Beta 15 *** ADVENTURER MODE // 2025.09.27 @ 14:27:09 Player: catshark Result: Self-destructed Performance ------------- Evolutions (1) 500 Regions Visited (2) 400 Robots Destroyed (2) 10 Value Destroyed (61) 61 Prototype IDs (0) 0 Alien Tech Used (0) 0 Bonus (200) 200 TOTAL SCORE: 1171 Bonus ------- Pacifist 200 Cogmind --------- Core Integrity 376/400 Matter 159/450 Energy 100/100 System Corruption 0% Temperature Cool (0) Movement Core (150) Ox2 Location -9/Materials Parts ------- > --- POWER (2) -------- (None) > --- PROPULSION (2) --- (None) > --- UTILITY (3) ------ Small Storage Unit Large Matter Pod > --- WEAPON (2) ------- (None) > --- INVENTORY (8) ---- Light Ion Engine Beam Rifle Heavy Assault Rifle Maul Peak State ------------ > --- POWER ------------ Ion Engine Improved Ion Engine > --- PROPULSION ------- Aluminum Leg Aluminum Leg > --- UTILITY ---------- Small Storage Unit Large Matter Pod > --- WEAPON ----------- Beam Rifle Autogun > --- INVENTORY -------- Light Ion Engine Light Ion Engine Heavy Assault Rifle Maul [Rating: 11] Favorites ----------- Power Ion Engine Engine Ion Engine Propulsion Aluminum Leg Leg Aluminum Leg Utility Small Storage Unit Storage Small Storage Unit Weapon Assault Rifle Energy Gun Beam Rifle Ballistic Gun Assault Rifle Ballistic Cannon Improved Light Cannon Build | -11 -10 -9 ------- Run | Yrd Mat Mat Slots Evolved 2 | . . 2 Power 1 | . . 1 Propulsion . | . . . Utility 1 | . . 1 Weapon . | . . . Parts Attached 13 | 1 7 5 Power 4 | . 3 1 Engine 4 | . 3 1 Core . | . . . Reactor . | . . . Propulsion 2 | . 2 . Treads . | . . . Leg 2 | . 2 . Wheel . | . . . Hover . | . . . Flight . | . . . Utility 2 | . 2 . Device . | . . . Storage 2 | . 2 . Processor . | . . . Hackware . | . . . Protection . | . . . Artifact . | . . . Weapon 5 | 1 . 4 Energy Gun 1 | . . 1 Energy Cannon . | . . . Ballistic Gun 3 | 1 . 2 Ballistic Cannon 1 | . . 1 Launcher . | . . . Special Weapon . | . . . Impact Weapon . | . . . Slashing Weapon . | . . . Piercing Weapon . | . . . Special Melee Weapon . | . . . Unidentified Prototypes . | . . . Parts Lost . | . . . Power . | . . . Propulsion . | . . . Utility . | . . . Weapon . | . . . Highest Loss Streak . | . . . To Critical Strikes . | . . . Average Backups 2 | 2 2 3 Power 1 | 1 2 2 Propulsion . | . . . Utility . | . . . Weapon . | . . 1 Tool/Special . | . . . Unused Backups 1 | . . 1 Power . | . . . Propulsion . | . . . Utility . | . . . Weapon 1 | . . 1 Tool/Special . | . . . Average Slot Usage (%) 73 | . 73 73 Engine 13 | . 13 14 Leg 22 | . 25 20 Storage 21 | . 19 22 Energy Gun 2 | . . 5 Ballistic Gun 12 | . 14 11 Peak Build Rating 11 | 1 6 11 Average Rating 6 | . 5 8 On Entrance 2 | . 1 6 Naked Turns . | . . . Heaviest Build 26 | 2 15 26 Greatest Support 20 | 3 20 20 Greatest Overweight (x) 6 | . . 6 Average Overweight (x) . | . . . Largest Inventory Capacity 8 | 5 8 8 Average Capacity 7 | 5 7 8 Most Carried 6 | 5 5 6 Average Carried 2 | 2 2 3 Final Capacity 8 | 5 8 8 Final Carried 5 | 5 2 4 Class Distribution -------------------- 100% | Mutant Dominant Class ---------------- Mutant | -10/Materials Mutant | -9/Materials Resources | -11 -10 -9 ----------- Run | Yrd Mat Mat Matter Collected 283 | 191 92 . Remotely . | . . . Salvage Created 80 | . . 80 Parts 8 | . . 8 Haulers Intercepted . | . . . Recyclers Shooed . | . . . Parts Field Recycled . | . . . Retrieved Matter . | . . . Parts Self-Destructed . | . . . Prevented . | . . . Kills | -11 -10 -9 ------- Run | Yrd Mat Mat Combat Hostiles Destroyed 1 | . . 1 Guns 1 | . . 1 Classes Destroyed 2 | . . 2 Watcher 1 | . . 1 Sentry 1 | . . 1 Best Kill Streak 1 | . . 1 Combat Bots Only 1 | . . 1 Max Kills in Single Turn 1 | . . 1 Gunslinging . | . . . Exploded . | . . . Melee . | . . . Uniques/NPCs Destroyed . | . . . Combat | -11 -10 -9 -------- Run | Yrd Mat Mat Hostile Shots Fired 14 | . . 14 Missed 2 | . . 2 Hits 12 | . . 12 Projectile 12 | . . 12 Critical Strikes 2 | . . 2 Damage Taken 150 | . 16 134 Core 24 | . . 24 Absorbed by Shields . | . . . Ignored by Resistances 43 | . 5 38 Core Remaining (%) 100 | 100 100 . Volleys Fired 17 | 1 . 16 Largest 2 | 1 . 2 Hottest 79 | 20 . 79 Shots Fired 20 | 1 . 19 Gun 19 | 1 . 18 Cannon 1 | . . 1 Launcher . | . . . Special . | . . . Kinetic 18 | 1 . 17 Thermal 2 | . . 2 Explosive . | . . . Electromagnetic . | . . . Robot Hit Streak 10 | 1 . 10 Robot Miss Streak 3 | . . 3 Penetration Max . | . . . Secondary Targets . | . . . Shots Hit Robots 14 | 1 . 13 Core Hits 4 | . . 4 Critical Kills . | . . . Critical Parts Destroyed . | . . . Critical Strikes . | . . . Melee Attacks . | . . . Impact . | . . . Slashing . | . . . Piercing . | . . . Sneak Attacks . | . . . Combat Hostiles . | . . . Follow-up Attacks . | . . . Damage Inflicted 187 | 12 7 168 Guns 159 | 12 . 147 Cannons 21 | . . 21 Explosions . | . . . Melee . | . . . Ramming 7 | . 7 . Kinetic 166 | 12 . 154 Thermal 14 | . . 14 Explosive . | . . . Electromagnetic . | . . . Impact . | . . . Slashing . | . . . Piercing . | . . . Highest Corruption . | . . . Average Corruption . | . . . Corruption Purged . | . . . Corruption Blocked . | . . . Overload Shots . | . . . Overflow Damage . | . . . Projectiles . | . . . Explosions . | . . . Melee . | . . . Knockbacks 1 | . 1 . Impact 1 | . 1 . Kinetic . | . . . Secondary . | . . . Self-Inflicted Damage . | . . . Shots . | . . . Rammed . | . . . Targets Rammed 1 | . 1 . Kicked 1 | . 1 . Crushed . | . . . Highest Temperature 88 | . . 88 Average Temperature 31 | . . 31 Received Heat Transfer 99 | . . 99 Siege Activations . | . . . Martial Activations . | . . . Shielding Activations . | . . . Robots Disrupted . | . . . Combat Hostiles . | . . . Robots Corrupted . | . . . Combat Hostiles . | . . . Parts Fried . | . . . Impact Corruptions . | . . . Robots Melted . | . . . Combat Hostiles . | . . . Parts Melted . | . . . Heat Transferred 37 | . . 37 Parts Sabotaged . | . . . Parts Stolen . | . . . Parts Stripped . | . . . Power Chain Reactions . | . . . Alert | -11 -10 -9 ------- Run | Yrd Mat Mat Maximum Alert Level . | . . . Low Security (%) 100 | 100 100 100 Level 1 . | . . . Level 2 . | . . . Level 3 . | . . . Level 4 . | . . . Level 5 . | . . . High Security . | . . . Max Security . | . . . Peak Influence 30 | . . 30 Initial . | . . . Average 1 | . . 3 Influence Increases 37 | . . 37 Destroy 0b10 Robot/C 20 | . . 20 Destroy 0b10 Robot/NC 5 | . . 5 Destroy Leader 12 | . . 12 Influence Decreases 37 | . . 37 Time Decay 37 | . . 37 Squads Dispatched 1 | . . 1 Investigation . | . . . Extermination . | . . . Reinforcement 1 | . . 1 Assault . | . . . Garrison . | . . . Intercept . | . . . Searches Triggered . | . . . Construction Impeded . | . . . Haulers Reinforced . | . . . Active Scanning Responses . | . . . Cargo Convoy Interrupts . | . . . Stealth | -11 -10 -9 --------- Run | Yrd Mat Mat Distress Signals . | . . . Communications Jammed . | . . . Distress Signals . | . . . Times Spotted 6 | . . 6 Peak Tracking Total 2 | . . 2 Tactical Retreats . | . . . Traps | -11 -10 -9 ------- Run | Yrd Mat Mat Traps Triggered 5 | . 1 4 Indirectly . | . . . Trap Hack Attempts . | . . . Triggered . | . . . Disarmed . | . . . Reprogrammed . | . . . Reused . | . . . Traps Extracted . | . . . Installed . | . . . Triggered . | . . . Machines | -11 -10 -9 ---------- Run | Yrd Mat Mat Machines Disabled . | . . . Max in Single Turn . | . . . Machines Repaired . | . . . Machines Dismantled . | . . . Machines Sabotaged . | . . . Overloaded Fab Kills . | . . . Hacking | -11 -10 -9 --------- Run | Yrd Mat Mat Machines Accessed 2 | . 2 . Terminals 2 | . 2 . Fabricators . | . . . Repair Stations . | . . . Recycling Units . | . . . Scanalyzers . | . . . Garrison Access . | . . . Total Hacks 3 | . 3 . Successful . | . . . Failed 3 | . 3 . Catastrophic . | . . . Database Lockouts . | . . . Manual . | . . . Terminals 3 | . 3 . Fabricators . | . . . Repair Stations . | . . . Recycling Units . | . . . Scanalyzers . | . . . Garrison Access . | . . . Terminal Hacks . | . . . Fabricator Hacks . | . . . Repair Station Hacks . | . . . Recycling Unit Hacks . | . . . Scanalyzer . | . . . Garrison Access Hacks . | . . . Unauthorized Hacks . | . . . Terminals . | . . . Fabricators . | . . . Repair Stations . | . . . Recycling Units . | . . . Scanalyzers . | . . . Garrison Access . | . . . Data Cores Recovered . | . . . Used . | . . . Hacking Detections 1 | . 1 . Full Trace Events . | . . . Feedback Events . | . . . Feedback Blocked . | . . . Robot Schematics Acquired . | . . . Robots Built . | . . . Authchips . | . . . Time . | . . . Total Robot Build Rating . | . . . Part Schematics Acquired . | . . . Parts Built . | . . . Authchips . | . . . Time . | . . . Total Part Build Rating . | . . . Parts Repaired . | . . . Time . | . . . Parts Recycled . | . . . Recycled Matter . | . . . Retrieved Matter . | . . . Retrieved Components . | . . . Parts Scanalyzed . | . . . Part Schematics Acquired . | . . . Parts Damaged . | . . . Bothacking | -11 -10 -9 ------------ Run | Yrd Mat Mat Used RIF Installer . | . . . Robots Hacked . | . . . Non-combat . | . . . Combat . | . . . Robot Hacks Applied . | . . . Relay Couplers Released . | . . . Fabnet Peak Effective % . | . . . Robots Rewired . | . . . Allies Hacked . | . . . Hacks Repelled . | . . . Allies | -11 -10 -9 -------- Run | Yrd Mat Mat Total Allies . | . . . Largest Group . | . . . Highest-Rated Group . | . . . Highest-Rated Ally . | . . . Total Orders . | . . . Ally Attacks . | . . . Total Damage . | . . . Kills . | . . . Allies Corrupted . | . . . Allies Melted . | . . . Intel | -11 -10 -9 ------- Run | Yrd Mat Mat Active Infowar (turns) . | . . . Robot Analysis Total . | . . . Derelict Logs Recovered . | . . . Drone Launches . | . . . Drone Recoveries . | . . . Exploration | -11 -10 -9 ------------- Run | Yrd Mat Mat Turns Passed 545 | 41 228 276 Spaces Moved 400 | 65 184 151 Core 73 | 65 6 2 Treads . | . . . Legs 327 | . 178 149 Wheels . | . . . Hover . | . . . Flight . | . . . Fastest Speed 50 | 50 50 120 Average Speed 118 | 50 117 148 Slowest Speed 350 | 50 120 350 Overloaded Moves . | . . . Propulsion Burnouts . | . . . Robots Hopped . | . . . Potential Cave-ins . | . . . Cave-ins Triggered . | . . . Exploration Rate (%) 16 | 4 30 15 Regions Visited 2 Branch Regions . Pre-discovered Areas . | . . . Known Exits Taken . | . . . Unknown Exits Taken 2 | 1 1 . Scrap Searched . | . . . Spaces Dug . | . . . Terrain Destroyed . | . . . Melee . | . . . Projectile . | . . . AOE . | . . . Terrain Rammed . | . . . Walls Destroyed . | . . . Machines Disabled . | . . . Actions | -11 -10 -9 --------- Run | Yrd Mat Mat Total 449 | 71 193 185 Wait . | . . . Move 398 | 64 183 151 Hop . | . . . Pick Up 14 | 5 1 8 Fast Attach 2 | 1 1 . Attach 10 | . 4 6 Detach . | . . . Swap 5 | . 3 2 Drop 2 | . . 2 Fire 17 | 1 . 16 Melee . | . . . Ram . | . . . Kick 1 | . 1 . Crush . | . . . Escape Stasis . | . . . Rewire . | . . . Trap . | . . . Miscellaneous . | . . . Route ------- -11/Scrapyard -10/Materials (discovered 2 exits: [*Mat] / [*Sub]) -9/Materials History --------- Turn | Location | Event 4 | -11/Scrapyard | Discovered new exit (range 16) 42 | -11/Scrapyard | Entered Materials 170 | -10/Materials | Discovered new exit (range 10) 224 | -10/Materials | Discovered new exit (range 7) 270 | -10/Materials | Entered another Materials area 270 | -9/Materials | Evolved 2 slots: Power x1, Utility x1 311 | -9/Materials | Build established: Mutant 546 | -9/Materials | Self-destructed Last Messages --------------- 00492_ U-05 Engineer lays Concrete. 00496_ K-01 Serf collects debris. 00509_ Acquired Imp. Light Cannon. 00536_ Triggered Blade Trap. 00536_ Massive razor-sharp blades shoot up from within the floor. 00536_ Autogun severed. 00536_ Aluminum Leg severed. 00536_ Lgt. Ion Engine severed. 00538_ Triggered Blade Trap. 00538_ Massive razor-sharp blades shoot up from within the floor. 00538_ Aluminum Leg severed. 00541_ U-05 Engineer lays Concrete. 00543_ Triggered Blade Trap. 00543_ Massive razor-sharp blades shoot up from within the floor. 00543_ Imp. Light Cannon severed. 00543_ Imp. Ion Engine severed. 00543_ U-05 Engineer lays Concrete. Map ----- +----------------------------------------------------+ | ????????????????????????????????????????# ## | | ????????????????????????????????????????# ## | | ????????????????????????????????????????# ## | | ????????????????????????????????????????+ ## | | ????????????????????????????????????????# ## | | ????????????????????????????????????????# ## | | ???????????????????????????????????????## ## | | ??????????????????????????###+########## | | ?????????????????????????# | | ?????????????????????????# | | ???????????????????????? | | ?????????????????????????# #####+##### | | ?????????????????????????# %#?????????########### | | ?????????????????????????# #???????????????????? | | ?????????????????????????# #???????????????????? | | ?????????????????????????# #???????????????????? | | ?????????????????????????# #????????????######## | | ?????????????????????????# #????????????# | | ?????????????????????????# #????????????# ##+ | | ?????????????????????????# #????????????# # | | ?????????????????????????# #????????????# # | | ?????????????????????????# #????????????# # | | ????????????????#????##### ############## # | | ????????????????# ??# u k # | | ????????????????# # ######## # | | ????????????????# + *u@ ^ # T # ### | | ????????????????# # [ * # # #?? | | ????????????????###### = # """ ########## #?? | | ????????????????# + """ ########?# #?# | | ????????????????# # """ # ### ### | | ?????????????"" + r # # # # | | ???????????? # ###### ######## """ # # | | ????????????##??# ?????# #??????# """ + " + | | ??????????????? k ??????# #??????# """ # # | | ????????????? ??????# % #??????# # # | | ????????????? ???????# #??????# ####### | | ????????????#####+???????# #??????# #?????? | | ????????????????????????? #??????########?????? | | ?????????????????????????# #???????????????????? | | ?????????????????????????# #???????????????????? | | ?????????????????????????# #???????????????????? | | ?????????????????????????# #???????????????????? | | ?????????????????????????# +???????????????????? | | ?????????????????????????? ????????????????????? | | ?????????????????????????????????????????????????? | | ?????????????????????????????????????????????????? | | ?????????????????????????????????????????????????? | | ?????????????????????????????????????????????????? | | ?????????????????????????????????????????????????? | | ?????????????????????????????????????????????????? | +----------------------------------------------------+ Best States ------------- Heat Dissipation 28 Energy Generation 17 Energy Capacity 415 Matter Stores 300 Matter Capacity 450 Sight Range 16 Terrain Scan Density 10 Resistance: KI 20 Resistance: TH 20 Resistance: EX 20 Resistance: EM 20 Resistance: I 20 Resistance: S 20 Resistance: P 20 Evasion (%) 55 Offensive Hacking 10 Item Schematics ----------------- None Robot Schematics ------------------ None Fabricated ------------ Nothing Repaired ---------- Nothing Alien Tech Used ----------------- None Achievements -------------- None Challenges ------------ None Game ------ Seed AntigravHeavyRedirector Manual? 0 Play Time 00:09:57 Cumulative 1.9 hours Start 2025.09.27 @ 14:19:15 End 2025.09.27 @ 14:27:09 Sessions 1 Manual Loads 0 Difficulty Adventurer Special Mode None Game No. 7 Rogue 0 Adventurer 7 Explorer 0 Win Type - Total 0 Types 0/0/0/0/0/0/0/0/0/0 Lore% 1 Gallery% 6 Achievement% 7 Wizard Run 0 Options --------- Layout 1 ASCII 0 Keyboard 0 Movement Mouse Keybinds 0 Fullscreen 1 Font 16/SmallcapsGlow Map View 50x40 Zoom Use 0% Tactical HUD 1 Map Filters NONE Filters NONE Steam SD RUN: 49b4e1d2-9e7f-4de4-a355-d53fe560d0ea